bitfinex-derivatives/quotes_BTCF0:USTF0_20250704
["timestamp","ask_amount","ask_price","bid_price","bid_amount"]
[1751667174170,1.36300448,108080.0,108070.0,0.1860064]
[1751667178871,1.6713033,108080.0,108070.0,0.1860064]
[1751667179469,1.36300448,108080.0,108070.0,0.1860064]
[1751667179670,1.6713033,108080.0,108070.0,0.1860064]
[1751667180071,1.6713033,108080.0,108070.0,0.001]
[1751667180673,1.6713033,108080.0,108070.0,0.1860196]
[1751667181377,1.6713033,108080.0,108070.0,0.001]
[1751667182177,1.6713033,108080.0,108070.0,0.1860196]
[1751667182378,1.36300448,108080.0,108070.0,0.1860196]
[1751667184081,1.6713033,108080.0,108070.0,0.001]
[1751667187779,1.74861682,108080.0,108070.0,0.001]
[1751667188281,0.1850196,108070.0,108060.0,0.26795197]
[1751667188582,2.35724129,108070.0,108060.0,0.26795197]
[1751667188778,2.12593757,108070.0,108060.0,0.26795197]
[1751667189682,2.12593757,108070.0,108060.0,0.26995197]
[1751667189982,2.12593757,108070.0,108060.0,0.27195197]
[1751667191170,2.12593757,108070.0,108060.0,0.22569567]
[1751667191376,2.35724129,108070.0,108060.0,0.22569567]
[1751667193982,2.35724129,108070.0,108060.0,0.04067347]
[1751667194280,2.50302704,108070.0,108060.0,0.004]
[1751667194580,2.52725928,108070.0,108060.0,0.004]
[1751667195979,2.52725928,108070.0,108060.0,0.1890367]
[1751667197779,2.54725928,108070.0,108060.0,0.1890367]
[1751667198484,2.54725453,108070.0,108060.0,0.1890367]
[1751667199382,2.54725453,108070.0,108060.0,0.004]
[1751667205892,2.62200945,108070.0,108060.0,0.004]
[1751667208392,2.15940201,108070.0,108060.0,0.1890367]
[1751667208592,2.62200945,108070.0,108060.0,0.1890367]
[1751667211494,1.53000945,108070.0,108060.0,0.1890367]
[1751667211690,2.62172945,108070.0,108060.0,0.1890367]
[1751667215406,1.53000945,108070.0,108060.0,0.1890367]
[1751667215708,1.99299081,108070.0,108060.0,0.1890367]
[1751667215905,1.99299081,108070.0,108060.0,0.2845367]
[1751667216904,2.22429453,108070.0,108060.0,0.2845367]
[1751667217700,2.22429453,108070.0,108060.0,0.56584042]
[1751667217701,1.99299081,108070.0,108060.0,0.56584042]
[1751667217906,1.99299081,108070.0,108060.0,0.2845367]
[1751667218106,0.90135081,108070.0,108060.0,0.2845367]
[1751667218306,1.99295081,108070.0,108060.0,0.2845367]
[1751667218508,1.99295081,108070.0,108060.0,0.6245367]
[1751667218698,1.99295081,108070.0,108060.0,0.8945367]
[1751667219808,1.99295081,108070.0,108060.0,0.2845367]
[1751667220005,1.96872332,108070.0,108060.0,0.3345367]
[1751667220207,0.87712332,108070.0,108060.0,0.3345367]
[1751667220408,1.96872332,108070.0,108060.0,0.3345367]
[1751667222005,0.8839396,108070.0,108060.0,0.78584042]
[1751667222208,1.32282372,108070.0,108060.0,1.37664042]
[1751667222408,1.50784332,108070.0,108060.0,1.37664042]
[1751667222708,1.32282372,108070.0,108060.0,1.37664042]
[1751667223110,1.50784332,108070.0,108060.0,1.37664042]
[1751667223508,1.32282372,108070.0,108060.0,1.37664042]
[1751667224308,0.46942372,108070.0,108060.0,1.37664042]
[1751667225308,2.74451263,108080.0,108070.0,0.1850196]
[1751667225498,3.29581635,108080.0,108070.0,0.5806196]
[1751667225811,3.32018522,108080.0,108070.0,0.5806196]
[1751667226010,3.50518772,108080.0,108070.0,0.5806196]
[1751667226310,3.50518772,108080.0,108070.0,0.3306196]
[1751667227809,3.32018522,108080.0,108070.0,0.3316196]
[1751667229115,2.85757778,108080.0,108070.0,0.3316196]
[1751667229316,3.32018522,108080.0,108070.0,0.3316196]
[1751667229517,3.50518772,108080.0,108070.0,0.3316196]
[1751667230317,3.32018522,108080.0,108070.0,0.3316196]
[1751667230613,3.0888815,108080.0,108070.0,0.3316196]
[1751667230816,2.08169635,108080.0,108070.0,0.3416196]
[1751667231012,2.08169635,108080.0,108070.0,0.2816196]
[1751667231013,2.93485635,108080.0,108070.0,0.2816196]
[1751667232319,3.11985885,108080.0,108070.0,0.2816196]
[1751667232517,3.11981885,108080.0,108070.0,0.2816196]
[1751667233521,3.18081885,108080.0,108070.0,0.2485196]
[1751667234222,3.21391885,108080.0,108070.0,0.2175196]
[1751667235223,3.21391885,108080.0,108070.0,0.1860196]
[1751667238724,2.75131141,108080.0,108070.0,0.1860196]
[1751667238924,3.21391885,108080.0,108070.0,0.1860196]
[1751667239924,3.02891635,108080.0,108070.0,0.1860196]
[1751667240321,3.02891635,108080.0,108070.0,0.4660196]
[1751667241122,3.02891635,108080.0,108070.0,0.1960196]
[1751667241328,3.02891635,108080.0,108070.0,0.4560196]
[1751667241521,3.02891635,108080.0,108070.0,0.1960196]
[1751667242026,3.02891635,108080.0,108070.0,0.27044164]
[1751667242223,3.02891635,108080.0,108070.0,0.58044164]
[1751667242416,3.02891635,108080.0,108070.0,0.26044164]
[1751667242621,3.02891635,108080.0,108070.0,0.53044164]
[1751667243026,3.02891635,108080.0,108070.0,0.27044164]
[1751667243225,3.02891635,108080.0,108070.0,0.58044164]
[1751667243927,3.02891635,108080.0,108070.0,0.27044164]
[1751667244125,3.02891635,108080.0,108070.0,0.26044164]
[1751667244322,3.02891635,108080.0,108070.0,0.57044164]
[1751667244519,1.94449263,108080.0,108070.0,1.16254536]
[1751667244725,2.79737263,108080.0,108070.0,1.19544536]
[1751667245027,2.79737263,108080.0,108070.0,0.89544536]
[1751667245227,2.79737263,108080.0,108070.0,1.18544536]
[1751667245727,1.94449263,108080.0,108070.0,1.18544536]
[1751667245925,2.73397263,108080.0,108070.0,1.21754536]
[1751667247125,2.73397263,108080.0,108070.0,1.24944536]
[1751667248923,2.73389263,108080.0,108070.0,1.24944536]
[1751667249727,0.33948891,108080.0,108070.0,1.24944536]
[1751667249931,1.19224891,108080.0,108070.0,1.24944536]
[1751667250427,0.33948891,108080.0,108070.0,1.24944536]
[1751667251026,0.57079263,108080.0,108070.0,1.24944536]
[1751667251531,0.63479263,108080.0,108070.0,1.24944536]
[1751667252029,0.63479263,108080.0,108070.0,1.21754536]
[1751667252230,0.66559263,108080.0,108070.0,1.21754536]
[1751667252423,0.89689635,108080.0,108070.0,0.61334164]
[1751667252726,0.89689635,108080.0,108070.0,0.54044164]
[1751667252928,0.43428891,108080.0,108070.0,0.54044164]
[1751667253128,0.89689635,108080.0,108070.0,0.54044164]
[1751667253318,0.66559263,108080.0,108070.0,0.77174536]
[1751667255931,0.43428891,108080.0,108070.0,0.77174536]
[1751667256130,0.66559263,108080.0,108070.0,0.77174536]
[1751667269444,0.89689635,108080.0,108070.0,0.77174536]
[1751667273547,0.43428891,108080.0,108070.0,0.77174536]
[1751667273746,0.66559263,108080.0,108070.0,0.77174536]
[1751667273935,0.66559263,108080.0,108070.0,0.57054164]
[1751667274135,0.66559263,108080.0,108070.0,0.80184536]
[1751667275554,0.43428891,108080.0,108070.0,0.83424536]
[1751667275741,0.60309263,108080.0,108070.0,0.83424536]
[1751667275949,0.60309263,108080.0,108070.0,1.22624536]
[1751667276248,0.33948891,108080.0,108070.0,1.22624536]
[1751667276447,0.57079263,108080.0,108070.0,1.22624536]
[1751667276847,0.33948891,108080.0,108070.0,1.22624536]
[1751667277645,0.57079263,108080.0,108070.0,0.99494164]
[1751667277839,0.33079263,108080.0,108070.0,1.22624536]
[1751667279552,0.33079263,108080.0,108070.0,1.59624536]
[1751667280050,0.33079263,108080.0,108070.0,1.22624536]
[1751667280753,0.33079263,108080.0,108070.0,0.99494164]
[1751667280953,0.33079263,108080.0,108070.0,1.22624536]
[1751667282655,0.09948891,108080.0,108070.0,1.22624536]
[1751667282855,0.33079263,108080.0,108070.0,1.22624536]
[1751667283457,0.08,108080.0,108070.0,1.22624536]
[1751667283651,0.31130372,108080.0,108070.0,1.54624536]
[1751667284658,0.08,108080.0,108070.0,1.54624536]
[1751667284960,0.31130372,108080.0,108070.0,1.61988506]
[1751667285368,0.08,108080.0,108070.0,1.61988506]
[1751667293368,0.08,108080.0,108070.0,2.47172506]
[1751667294771,0.08,108080.0,108070.0,2.39808536]
[1751667295165,0.08,108080.0,108070.0,2.49013498]
[1751667296868,1.77668372,108100.0,108090.0,0.1849853]
[1751667297070,2.37238262,108100.0,108090.0,0.1849853]
[1751667298071,2.37338262,108100.0,108090.0,0.1849853]
[1751667298572,1.91077518,108100.0,108090.0,0.1849853]
[1751667298772,2.37338262,108100.0,108090.0,0.1849853]
[1751667298971,2.37738262,108100.0,108090.0,0.1849853]
[1751667300972,2.56235082,108100.0,108090.0,0.1849853]
[1751667303377,2.79365454,108100.0,108090.0,0.1849853]
[1751667303581,2.79365454,108100.0,108090.0,0.1350853]
[1751667308590,0.2774829,108090.0,108080.0,0.1850025]
[1751667308884,1.65338552,108090.0,108080.0,0.1850025]
[1751667309585,1.65538552,108090.0,108080.0,0.1850025]
[1751667310583,0.1850025,108080.0,108070.0,0.42564331]
[1751667310887,1.68222994,108080.0,108070.0,0.42564331]
[1751667311083,1.91978994,108080.0,108070.0,0.42564331]
[1751667311478,2.19978994,108080.0,108070.0,0.42564331]
[1751667311683,2.19978994,108080.0,108070.0,0.42664331]
[1751667312087,2.19978994,108080.0,108070.0,0.35293564]
[1751667314589,2.19978994,108080.0,108070.0,0.30668134]
[1751667314890,2.73189366,108080.0,108070.0,0.001]
[1751667315082,2.75635107,108080.0,108070.0,0.001]
[1751667315278,2.52504735,108080.0,108070.0,0.001]
[1751667317386,2.50058994,108080.0,108070.0,0.1860195]
[1751667318595,1.1864625,108080.0,108070.0,0.1860195]
[1751667318793,2.50046994,108080.0,108070.0,0.1860195]
[1751667319183,2.50046994,108080.0,108070.0,0.1860196]
[1751667323592,2.50046994,108080.0,108070.0,0.001]
[1751667323997,0.1850367,108060.0,108050.0,0.41047126]
[1751667324190,2.22972414,108060.0,108050.0,0.28604606]
[1751667324492,2.26542414,108060.0,108050.0,0.1850437]
[1751667325491,2.26542414,108060.0,108050.0,0.1890437]
[1751667325797,2.26542414,108060.0,108050.0,0.1920437]
[1751667326195,1.95542414,108060.0,108050.0,0.1920437]
[1751667328197,1.95542414,108060.0,108050.0,0.1850437]
[1751667331103,1.95542414,108060.0,108050.0,0.2175437]
[1751667332700,1.92342414,108060.0,108050.0,0.2175437]
[1751667333594,1.92342414,108060.0,108050.0,0.2775437]
[1751667333800,1.92342414,108060.0,108050.0,0.3087437]
[1751667333994,1.92342414,108060.0,108050.0,0.3408437]
[1751667337198,1.92342414,108060.0,108050.0,0.2808437]
[1751667337398,1.92342414,108060.0,108050.0,0.5908437]
[1751667337589,1.4608167,108060.0,108050.0,0.2808437]
[1751667337796,1.92342414,108060.0,108050.0,0.3408437]
[1751667337992,1.92342414,108060.0,108050.0,0.3508437]
[1751667338197,1.92342414,108060.0,108050.0,0.2808437]
[1751667339001,1.92342414,108060.0,108050.0,0.3308437]
[1751667341208,1.92342414,108060.0,108050.0,0.6008437]
[1751667341408,1.92342414,108060.0,108050.0,0.3308437]
[1751667341703,1.92342414,108060.0,108050.0,0.2808437]
[1751667341893,1.92342414,108060.0,108050.0,0.3408437]
[1751667342306,1.92342414,108060.0,108050.0,0.6008437]
[1751667342507,1.92342414,108060.0,108050.0,0.3308437]
[1751667344404,1.92342414,108060.0,108050.0,0.2808437]
[1751667344604,1.92342414,108060.0,108050.0,0.3308437]
[1751667344805,1.92342414,108060.0,108050.0,0.5508437]
[1751667345211,1.92342414,108060.0,108050.0,0.2808437]
[1751667345807,1.92342414,108060.0,108050.0,0.5908437]
[1751667346009,1.92342414,108060.0,108050.0,0.2808437]
[1751667348511,1.92342414,108060.0,108050.0,0.3408437]
[1751667348710,1.92342414,108060.0,108050.0,0.5608437]
[1751667348921,1.92342414,108060.0,108050.0,0.2808437]
[1751667349521,1.92342414,108060.0,108050.0,0.3408437]
[1751667349817,2.16038414,108060.0,108050.0,0.3408437]
[1751667351419,2.16038414,108060.0,108050.0,0.2808437]
[1751667351919,2.16038414,108060.0,108050.0,0.4108437]
[1751667352518,2.16038414,108060.0,108050.0,0.36455137]
[1751667352717,2.16038414,108060.0,108050.0,0.35455137]
[1751667352920,2.16038414,108060.0,108050.0,0.95455137]
[1751667353819,1.6977767,108060.0,108050.0,0.95455137]
[1751667354021,2.16038414,108060.0,108050.0,0.95455137]
[1751667354619,2.16038414,108060.0,108050.0,0.35455137]
[1751667355016,2.16038414,108060.0,108050.0,0.65455137]
[1751667355923,2.16038414,108060.0,108050.0,0.62245137]
[1751667357725,0.64380189,108070.0,108060.0,0.1850367]
[1751667357917,0.34719359,108070.0,108060.0,1.08634042]
[1751667358122,1.40353359,108070.0,108060.0,1.18254042]
[1751667358321,0.55293359,108070.0,108060.0,1.18254042]
[1751667358521,1.37914372,108070.0,108060.0,1.18254042]
[1751667358718,0.29130372,108070.0,108060.0,1.18254042]
[1751667359024,1.37914372,108070.0,108060.0,1.18254042]
[1751667359223,0.29130372,108070.0,108060.0,1.18254042]
[1751667359425,1.38010372,108070.0,108060.0,1.18254042]
[1751667359724,1.56512332,108070.0,108060.0,1.18254042]
[1751667360027,1.56712332,108070.0,108060.0,1.18254042]
[1751667360427,1.56712332,108070.0,108060.0,0.93254042]
[1751667361333,1.3358196,108070.0,108060.0,0.93254042]
[1751667361524,1.38210372,108070.0,108060.0,1.18254042]
[1751667365634,1.56712332,108070.0,108060.0,0.61254042]
[1751667367134,1.56712332,108070.0,108060.0,0.91254042]
[1751667367336,1.59782332,108070.0,108060.0,0.91254042]
[1751667367639,1.59782332,108070.0,108060.0,0.61254042]
[1751667368138,1.59782332,108070.0,108060.0,0.92254042]
[1751667368336,1.59782332,108070.0,108060.0,0.61254042]
[1751667368633,1.59782332,108070.0,108060.0,0.89254042]
[1751667368837,1.41280372,108070.0,108060.0,0.79254042]
[1751667369036,1.38186372,108070.0,108060.0,1.23624809]
[1751667369837,1.38186372,108070.0,108060.0,1.16254042]
[1751667371133,0.53150372,108070.0,108060.0,1.16254042]
[1751667371740,0.3002,108070.0,108060.0,1.52334042]
[1751667371930,0.53150372,108070.0,108060.0,1.82835181]
[1751667372335,0.53150372,108070.0,108060.0,1.59704809]
[1751667372638,0.53150372,108070.0,108060.0,1.82835181]
[1751667374339,0.53150372,108070.0,108060.0,1.84669376]
[1751667374534,0.53150372,108070.0,108060.0,1.92033947]
[1751667374838,0.53150372,108070.0,108060.0,1.82828985]
[1751667375232,0.3002,108070.0,108060.0,1.82828985]
[1751667379247,0.063,108070.0,108060.0,1.82828985]
[1751667379843,0.063,108070.0,108060.0,1.75464414]
[1751667380143,0.063,108070.0,108060.0,1.84669376]
[1751667381444,0.29430372,108070.0,108060.0,1.84669376]
[1751667382046,0.063,108070.0,108060.0,1.38408632]
[1751667382245,0.29430372,108070.0,108060.0,1.84669376]
[1751667384849,0.063,108070.0,108060.0,1.84669376]
[1751667385046,0.29430372,108070.0,108060.0,1.84669376]
[1751667386352,0.063,108070.0,108060.0,1.84669376]
[1751667386646,0.063,108070.0,108060.0,1.75464414]
[1751667390352,0.063,108070.0,108060.0,1.84669376]
[1751667395459,0.063,108070.0,108060.0,1.48589376]
[1751667395650,0.063,108070.0,108060.0,1.84669376]
[1751667398162,0.063,108070.0,108060.0,1.48589376]
[1751667398360,0.063,108070.0,108060.0,1.84669376]
[1751667398864,0.063,108070.0,108060.0,1.38408632]
[1751667399263,0.063,108070.0,108060.0,1.84669376]
[1751667403864,0.063,108070.0,108060.0,1.48589376]
[1751667404077,0.063,108070.0,108060.0,1.84669376]
[1751667406176,0.06,108070.0,108060.0,1.84669376]
[1751667406373,0.06,108070.0,108060.0,1.84769376]
[1751667407976,0.3119841,108080.0,108070.0,0.1850196]
[1751667408175,0.6119841,108080.0,108070.0,1.14712332]
[1751667408970,0.6019841,108080.0,108070.0,0.47712332]
[1751667409275,0.3119841,108080.0,108070.0,0.47712332]
[1751667409472,0.6019841,108080.0,108070.0,0.47712332]
[1751667409777,0.3119841,108080.0,108070.0,0.55081398]
[1751667409976,0.6149841,108080.0,108070.0,0.55081398]
[1751667410172,0.6149841,108080.0,108070.0,0.47712332]
[1751667410373,0.3149841,108080.0,108070.0,0.86081136]
[1751667410680,0.5949841,108080.0,108070.0,0.87081136]
[1751667410972,0.6049841,108080.0,108070.0,0.83081136]
[1751667411377,0.5749841,108080.0,108070.0,0.85081136]
[1751667411674,0.3149841,108080.0,108070.0,0.87081136]
[1751667411878,0.08368038,108080.0,108070.0,0.52081136]
[1751667412075,0.5849841,108080.0,108070.0,0.81081136]
[1751667412275,0.6149841,108080.0,108070.0,0.73712332]
[1751667412478,0.3149841,108080.0,108070.0,0.44712332]
[1751667412678,0.5749841,108080.0,108070.0,0.82081318]
[1751667413778,0.5749841,108080.0,108070.0,0.893367]
[1751667414380,0.5649841,108080.0,108070.0,0.893367]
[1751667414979,0.5449841,108080.0,108070.0,0.913367]
[1751667415380,0.5649841,108080.0,108070.0,0.903367]
[1751667416282,0.5649841,108080.0,108070.0,0.67206328]
[1751667416480,0.5649841,108080.0,108070.0,0.903367]
[1751667417681,0.5649841,108080.0,108070.0,0.82967714]
[1751667423880,0.5649841,108080.0,108070.0,0.903367]
[1751667425784,0.5649841,108080.0,108070.0,1.253367]
[1751667425981,0.5649841,108080.0,108070.0,1.17967714]
[1751667426181,0.5649841,108080.0,108070.0,1.54047714]
[1751667426684,0.5649841,108080.0,108070.0,1.61419002]
[1751667426885,0.33368038,108080.0,108070.0,1.61419002]
[1751667427083,0.5649841,108080.0,108070.0,1.61419002]
[1751667428484,0.3149841,108080.0,108070.0,1.61419002]
[1751667428974,0.3149841,108080.0,108070.0,1.64739002]
[1751667429777,0.08368038,108080.0,108070.0,1.64739002]
[1751667433592,0.08368038,108080.0,108070.0,1.57367714]
[1751667435791,0.02268038,108080.0,108070.0,1.60427714]
[1751667436584,0.02268038,108080.0,108070.0,1.83558086]
[1751667436585,0.003,108080.0,108070.0,1.83558086]
[1751667436790,0.01905068,108100.0,108090.0,0.1849854]
[1751667436990,0.37905068,108100.0,108090.0,1.06628912]
[1751667437289,0.37905068,108100.0,108090.0,1.16048912]
[1751667438186,0.37905068,108100.0,108090.0,1.25444253]
[1751667439092,0.38005068,108100.0,108090.0,1.25444253]
[1751667439893,0.38305068,108100.0,108090.0,1.25444253]
[1751667440889,0.38305068,108100.0,108090.0,1.84654625]
[1751667441084,0.17305068,108100.0,108090.0,1.84654625]
[1751667441289,0.17305068,108100.0,108090.0,1.61524253]
[1751667443592,0.17305068,108100.0,108090.0,1.84654625]
[1751667444298,0.17305068,108100.0,108090.0,1.77290642]
[1751667445199,0.02305068,108100.0,108090.0,1.84637723]
[1751667445392,0.02305068,108100.0,108090.0,1.77290642]
[1751667445996,0.02305068,108100.0,108090.0,1.4023486]
[1751667446195,0.02305068,108100.0,108090.0,1.86495604]
[1751667447702,0.02305068,108100.0,108090.0,1.8463187]
[1751667456510,0.02305068,108100.0,108090.0,2.2071187]
[1751667462414,0.02305068,108100.0,108090.0,2.13370642]
[1751667464317,0.004,108100.0,108090.0,2.13370642]
[1751667464613,0.004,108100.0,108090.0,2.22575604]
[1751667467419,0.004,108100.0,108090.0,2.13370642]
[1751667467719,0.004,108100.0,108090.0,2.2625759]
[1751667469029,1e-07,108100.0,108090.0,2.2625759]
[1751667469326,0.002,108120.0,108110.0,0.1849511]
[1751667469627,0.0637,108120.0,108110.0,2.53926909]
[1751667469926,0.0637,108120.0,108110.0,2.57006909]
[1751667470525,0.0707,108120.0,108110.0,1.64915854]
[1751667470724,0.0707,108120.0,108110.0,2.49655854]
[1751667471431,0.0747,108120.0,108110.0,2.49655854]
[1751667471834,0.0747,108120.0,108110.0,2.57003489]
[1751667472932,0.0747,108120.0,108110.0,2.49655854]
[1751667476439,0.0747,108120.0,108110.0,2.57004685]
[1751667476840,0.0747,108120.0,108110.0,2.49655854]
[1751667479245,0.0747,108120.0,108110.0,1.64915854]
[1751667479443,0.0747,108120.0,108110.0,2.49635854]
[1751667482547,0.0747,108120.0,108110.0,1.64915854]
[1751667482847,0.0747,108120.0,108110.0,2.49627854]
[1751667483745,0.0747,108120.0,108110.0,2.56976685]
[1751667484044,0.0747,108120.0,108110.0,2.49627854]
[1751667484246,0.0747,108120.0,108110.0,2.58811673]
[1751667485547,0.0747,108120.0,108110.0,2.61871673]
[1751667486246,0.013,108120.0,108110.0,2.85002045]
[1751667486448,0.013,108120.0,108110.0,3.01111673]
[1751667487355,0.013,108120.0,108110.0,3.01099673]
[1751667487650,0.004,108120.0,108110.0,3.01099673]
[1751667487853,0.007,108120.0,108110.0,3.01099673]
[1751667490456,0.007,108120.0,108110.0,2.91915854]
[1751667491653,0.007,108120.0,108110.0,2.99261197]
[1751667491954,0.007,108120.0,108110.0,2.91915854]
[1751667492254,0.007,108120.0,108110.0,2.99261019]
[1751667492451,0.007,108120.0,108110.0,2.91915854]
[1751667492958,0.007,108120.0,108110.0,2.07215854]
[1751667493155,0.007,108120.0,108110.0,2.91915854]
[1751667493755,0.007,108120.0,108110.0,3.41915854]
[1751667497159,0.007,108120.0,108110.0,3.51099673]
[1751667497755,0.007,108120.0,108110.0,3.41915854]
[1751667499160,0.007,108120.0,108110.0,3.51099673]
[1751667505266,0.007,108120.0,108110.0,3.41915854]
[1751667505860,0.007,108120.0,108110.0,3.51099673]
[1751667506562,0.007,108120.0,108110.0,3.41915854]
[1751667507267,0.007,108120.0,108110.0,3.51100075]
[1751667507462,0.007,108120.0,108110.0,3.41915854]
[1751667507668,0.007,108120.0,108110.0,3.49263356]
[1751667512469,0.007,108120.0,108110.0,3.41915854]
[1751667515169,0.007,108120.0,108110.0,3.51102165]
[1751667519673,0.007,108120.0,108110.0,3.41915854]
[1751667519971,0.007,108120.0,108110.0,3.54802802]
[1751667520471,0.007,108120.0,108110.0,3.41915854]
[1751667521174,0.007,108120.0,108110.0,3.51104857]
[1751667522572,0.007,108120.0,108110.0,2.20144113]
[1751667522773,0.007,108120.0,108110.0,2.10844113]
[1751667522980,0.32890372,108120.0,108110.0,3.16817685]
[1751667523172,0.32890372,108120.0,108110.0,2.43687313]
[1751667523474,0.32890372,108120.0,108110.0,2.66817685]
[1751667523677,0.32890372,108120.0,108110.0,2.43687313]
[1751667523976,0.0976,108120.0,108110.0,2.66817685]
[1751667524170,0.32890372,108120.0,108110.0,2.66817685]
[1751667524474,0.32890372,108120.0,108110.0,2.59465482]
[1751667524976,0.0976,108120.0,108110.0,2.59465482]
[1751667525976,0.0976,108120.0,108110.0,2.68654485]
[1751667526271,0.0976,108120.0,108110.0,2.45524113]
[1751667526471,0.0976,108120.0,108110.0,2.68654485]
[1751667527273,0.0976,108120.0,108110.0,2.45524113]
[1751667527479,0.0976,108120.0,108110.0,2.68654485]
[1751667528573,0.0976,108120.0,108110.0,2.45528113]
[1751667528778,0.0976,108120.0,108110.0,2.68658485]
[1751667530475,0.0976,108120.0,108110.0,2.59469482]
[1751667533082,0.0976,108120.0,108110.0,2.82599854]
[1751667533277,0.0976,108120.0,108110.0,2.91788857]
[1751667533580,0.0976,108120.0,108110.0,2.55708857]
[1751667533980,0.0976,108120.0,108110.0,2.32578485]
[1751667536582,0.0976,108120.0,108110.0,2.55708857]
[1751667540387,0.0976,108120.0,108110.0,1.71024857]
[1751667540584,0.0976,108120.0,108110.0,2.55708857]
[1751667540977,0.0976,108120.0,108110.0,2.32578485]
[1751667541190,0.0976,108120.0,108110.0,2.55708857]
[1751667541581,0.0976,108120.0,108110.0,2.58868857]
[1751667542489,0.0976,108120.0,108110.0,2.49679854]
[1751667543488,0.0675,108120.0,108110.0,2.49679854]
[1751667546590,0.0675,108120.0,108110.0,2.52959854]
[1751667547595,0.0675,108120.0,108110.0,2.62148857]
[1751667548894,0.0675,108120.0,108110.0,2.65318857]
[1751667550891,0.0675,108120.0,108110.0,2.42188485]
[1751667551487,0.0675,108120.0,108110.0,2.65318857]
[1751667551690,0.007,108120.0,108110.0,2.65318857]
[1751667557598,0.007,108120.0,108110.0,2.19058113]
[1751667557794,0.007,108120.0,108110.0,2.65318857]
[1751667558797,0.007,108120.0,108110.0,2.19058113]
[1751667559102,0.007,108120.0,108110.0,2.65318857]
[1751667560901,0.007,108120.0,108110.0,3.15318857]
[1751667568500,0.007,108120.0,108110.0,3.06129854]
[1751667575404,0.007,108120.0,108110.0,3.15318857]
[1751667575808,0.007,108120.0,108110.0,3.06129854]
[1751667582513,0.007,108120.0,108110.0,3.15318857]
[1751667588120,0.007,108120.0,108110.0,2.30634857]
[1751667588321,0.007,108120.0,108110.0,3.15278857]
[1751667588519,0.069,108120.0,108110.0,3.15278857]
[1751667594034,0.069,108120.0,108110.0,2.27464857]
[1751667594233,0.069,108120.0,108110.0,3.12104857]
[1751667594830,0.069,108120.0,108110.0,2.62104857]
[1751667596834,0.069,108120.0,108110.0,2.65184857]
[1751667598740,0.007,108120.0,108110.0,2.65184857]
[1751667599540,1e-07,108120.0,108110.0,2.65184857]
[1751667600741,1e-07,108120.0,108110.0,2.55995854]
[1751667601040,1e-07,108120.0,108110.0,2.65187592]
[1751667601641,1e-07,108120.0,108110.0,2.55995854]
[1751667602940,1e-07,108120.0,108110.0,2.68882802]
[1751667603341,1e-07,108120.0,108110.0,2.55995854]
[1751667603744,1e-07,108120.0,108110.0,2.68882802]
[1751667604342,1e-07,108120.0,108110.0,2.78075044]
[1751667604544,1e-07,108120.0,108110.0,2.65188096]
[1751667604844,1e-07,108120.0,108110.0,2.18927352]
[1751667605039,1e-07,108120.0,108110.0,3.15188096]
[1751667605537,0.0622601,108130.0,108120.0,0.184934]
[1751667605741,0.0622601,108130.0,108120.0,1.67004144]
[1751667607040,0.0662601,108130.0,108120.0,1.67004144]
[1751667608046,0.0692601,108130.0,108120.0,1.67004144]
[1751667609754,0.0692601,108130.0,108120.0,1.207434]
[1751667609947,0.0692601,108130.0,108120.0,1.67004144]
[1751667610144,0.0692601,108130.0,108120.0,1.74355678]
[1751667610344,0.0692601,108130.0,108120.0,1.71185678]
[1751667610540,0.0692601,108130.0,108120.0,2.55801678]
[1751667610741,0.1024601,108130.0,108120.0,2.48450144]
[1751667610942,0.1024601,108130.0,108120.0,1.63834144]
[1751667611146,0.1024601,108130.0,108120.0,2.48450144]
[1751667611348,0.1024601,108130.0,108120.0,2.021894]
[1751667611548,0.1024601,108130.0,108120.0,2.48450144]
[1751667612046,0.0994601,108130.0,108120.0,1.63834144]
[1751667612252,0.1014601,108130.0,108120.0,2.48446144]
[1751667612452,0.1014601,108130.0,108120.0,2.57638386]
[1751667613246,0.0994601,108130.0,108120.0,2.57638386]
[1751667615651,0.0994601,108130.0,108120.0,2.11377642]
[1751667615847,0.0994601,108130.0,108120.0,2.57638386]
[1751667616651,0.0994601,108130.0,108120.0,2.57634386]
[1751667618550,0.0994601,108130.0,108120.0,1.73026386]
[1751667618747,0.0994601,108130.0,108120.0,2.57630386]
[1751667622455,0.0994601,108130.0,108120.0,2.48438144]
[1751667623455,0.0994601,108130.0,108120.0,2.021774]
[1751667623754,0.0994601,108130.0,108120.0,2.48438144]
[1751667626753,0.0994601,108130.0,108120.0,2.55788234]
[1751667629056,0.0994601,108130.0,108120.0,2.58978234]
[1751667629361,0.0994601,108130.0,108120.0,2.58966234]
[1751667629560,0.0662601,108130.0,108120.0,2.58966234]
[1751667631152,0.0662601,108130.0,108120.0,2.60808386]
[1751667632059,0.0662601,108130.0,108120.0,2.64038386]
[1751667632859,0.0662601,108130.0,108120.0,2.54846144]
[1751667634558,0.0662601,108130.0,108120.0,2.57846144]
[1751667635766,0.0662601,108130.0,108120.0,2.115854]
[1751667635967,0.0662601,108130.0,108120.0,2.57846144]
[1751667636764,0.01926917,108150.0,108140.0,0.1848998]
[1751667636968,1.96982381,108170.0,108160.0,0.1848656]
[1751667637168,2.36201881,108170.0,108160.0,0.4548656]
[1751667637368,2.54692281,108170.0,108160.0,0.4548656]
[1751667637569,2.52290244,108170.0,108160.0,0.4548656]
[1751667638270,2.18077844,108170.0,108160.0,0.77461173]
[1751667638469,1.94489844,108170.0,108160.0,0.77461173]
[1751667638669,1.94489844,108170.0,108160.0,0.80751173]
[1751667638868,1.95089844,108170.0,108160.0,0.80751173]
[1751667639066,1.95889844,108170.0,108160.0,0.80751173]
[1751667639370,0.56976491,108200.0,108160.0,2.51226129]
[1751667639371,0.3678,108200.0,108160.0,2.51226129]
[1751667639559,0.03099539,108200.0,108190.0,0.77691802]
[1751667639760,1.03920013,108200.0,108190.0,0.1848143]
[1751667639964,0.2310194,108190.0,108180.0,0.1848314]
[1751667640165,0.1848314,108180.0,108170.0,0.277253]
[1751667640368,1.04013884,108180.0,108170.0,0.2310436]
[1751667640567,0.1848485,108170.0,108160.0,0.31951041]
[1751667640763,1.38065594,108170.0,108160.0,0.09192242]
[1751667640970,2.66403994,108170.0,108160.0,0.09192242]
[1751667641169,0.1848656,108160.0,108150.0,5.27660185]
[1751667641373,1.57341632,108160.0,108150.0,5.27660185]
[1751667641571,2.00833632,108160.0,108150.0,5.27660185]
[1751667641772,2.00833632,108160.0,108150.0,5.18467943]
[1751667642173,1.75833632,108160.0,108150.0,5.18467943]
[1751667642677,1.75833632,108160.0,108150.0,5.18567943]
[1751667643474,1.84280912,108160.0,108150.0,4.33057472]
[1751667643675,2.92736912,108160.0,108150.0,4.33057472]
[1751667643974,3.72128028,108160.0,108150.0,3.34257472]